bitfinex-derivatives/quotes_SOLF0:USTF0_20250227
["timestamp","ask_amount","ask_price","bid_price","bid_amount"]
[1740679507622,11.46,139.08,138.93,13.428]
[1740679507922,29.92594308,139.09,138.93,209.208]
[1740679508226,0.04911299,139.02,139.0,0.04818352]
[1740679508428,29.92594308,139.09,138.95,14.4076]
[1740679509128,29.92594308,139.09,138.96,14.4064]
[1740679509628,29.92594308,139.09,139.01,0.0542617]
[1740679509925,0.03524225,139.04,139.03,7.1995]
[1740679510127,1.3228316,139.14,139.02,2.0084]
[1740679510528,1.3228316,139.14,139.03,7.1996]
[1740679510727,1.3228316,139.14,139.02,2.0084]
[1740679511224,1.3228316,139.14,139.07,0.05322118]
[1740679511829,11.46,139.13,139.07,0.05322118]
[1740679512226,84.08190177,139.15,139.07,0.05322118]
[1740679512632,7.1952,139.12,139.09,7.1962]
[1740679512830,84.08190177,139.15,139.09,7.1962]
[1740679513034,7.1948,139.13,139.09,0.04790082]
[1740679513331,7.1948,139.13,139.1,7.196]
[1740679513532,84.08190177,139.15,139.09,0.04790082]
[1740679513728,7.1942,139.14,139.09,0.04790082]
[1740679513928,84.08190177,139.15,139.09,0.04790082]
[1740679514129,29.92594308,139.18,139.09,0.04790082]
[1740679514328,29.92594308,139.18,139.09,7.1964]
[1740679514528,29.92594308,139.18,139.12,0.04942246]
[1740679514930,7.1943,139.14,139.12,0.04942246]
[1740679515129,29.92594308,139.18,139.12,0.04942246]
[1740679515334,11.5495,139.19,139.12,0.04942246]
[1740679515639,7.1945,139.13,139.12,0.04942246]
[1740679519229,33.1395,139.19,139.04,1.8978]
[1740679519425,1.32259447,139.18,139.04,1.8978]
[1740679519628,21.59,139.16,139.04,1.8978]
[1740679519827,1.32259447,139.15,139.04,1.8978]
[1740679520428,0.04942246,139.11,139.08,0.05406353]
[1740679520637,11.50942246,139.11,139.08,0.05406353]
[1740679520834,7.1966,139.09,139.08,0.05406353]
[1740679521237,11.50942246,139.11,139.02,2.0084]
[1740679521433,0.346,139.1,138.98,1.9265]
[1740679521638,1.66918978,139.1,138.98,1.9265]
[1740679521840,22.91318978,139.09,138.98,1.9265]
[1740679522040,22.91318978,139.09,138.97,1.8984]
[1740679522041,1.32339892,139.08,138.97,1.8984]
[1740679522241,1.32339892,139.08,138.96,41.27687257]
[1740679522434,0.04787328,139.04,139.01,0.04641572]
[1740679522633,11.46,139.03,138.96,41.27687257]
[1740679523140,7.2022,138.99,138.96,41.27687257]
[1740679523443,11.46,139.03,138.96,39.25247257]
[1740679523640,1.67000554,139.02,138.88,9.8094953]
[1740679523835,0.0490025,139.01,138.98,3.652e-05]
[1740679524042,22.91406507,139.01,138.88,9.8094953]
[1740679524238,1.32406507,139.0,138.88,9.8094953]
[1740679524837,1.32406507,138.99,138.88,9.8094953]
[1740679525037,7.2024,138.98,138.93,0.04713502]
[1740679525242,0.05366268,138.95,138.93,0.04713502]
[1740679525443,7.2024,138.98,138.88,9.8094953]
[1740679525640,0.04689976,138.95,138.93,0.05538217]
[1740679528945,7.2044,138.94,138.93,0.05538217]
[1740679530445,0.04689976,138.95,138.93,0.05538217]
[1740679531548,0.04689976,138.95,138.94,7.2044]
[1740679531751,11.46,138.99,138.93,0.05538217]
[1740679532951,11.46,139.05,138.93,0.05538217]
[1740679533151,11.46,139.06,138.93,0.05538217]
[1740679533352,11.46,139.06,138.86,15.2747]
[1740679533651,7.2001,139.03,138.99,7.2015]
[1740679534052,11.46,139.06,138.86,15.2747]
[1740679534053,51.51594308,139.12,138.91,14.4118]
[1740679534252,0.05366948,139.02,139.0,0.05023333]
[1740679534443,0.05366948,139.02,139.01,7.2007]
[1740679534649,7.1978,139.07,138.93,11.46]
[1740679534847,0.05299733,139.03,139.0,0.046122]
[1740679535052,0.04969407,139.01,138.94,1.913]
[1740679535252,7.1985,139.06,139.0,0.05390329]
[1740679535451,7.1985,139.06,138.94,1.913]
[1740679536154,7.1978,139.07,139.02,7.2001]
[1740679536350,11.46,139.11,139.02,7.2001]
[1740679536550,0.04388276,139.06,138.94,1.913]
[1740679536749,11.46,139.11,139.05,0.04713826]
[1740679537049,8.276e-05,139.01,138.96,195.78]
[1740679537355,11.46,139.15,138.96,388.78]
[1740679537549,11.46,139.15,138.97,14.4056]
[1740679538154,7.1942,139.14,138.98,1.8837]
[1740679538352,11.46,139.15,139.05,0.05382097]
[1740679538655,11.46,139.15,138.98,1.8837]
[1740679538656,11.46,139.15,139.0,11.46]
[1740679538957,11.46,139.15,139.09,0.05144519]
[1740679539151,11.46,139.15,139.0,204.46]
[1740679539351,11.46,139.15,139.11,0.05407366]
[1740679539548,11.46,139.15,139.0,204.46]
[1740679539754,11.46,139.15,139.12,0.05045303]
[1740679540450,7.194,139.14,139.12,0.05045303]
[1740679540657,11.46,139.15,139.12,0.05045303]
[1740679541456,7.1945,139.13,139.12,0.05045303]
[1740679545957,18.6535,139.15,139.12,7.24525303]
[1740679546157,11.46,139.15,139.12,0.05045303]
[1740679546863,18.6536,139.15,139.12,0.05045303]
[1740679547757,7.1936,139.15,139.12,0.05045303]
[1740679547959,11.46,139.2,139.12,0.05045303]
[1740679548152,11.46,139.2,139.02,194.8793]
[1740679548356,11.46,139.2,139.15,0.05497124]
[1740679548551,11.46,139.2,139.12,1.8882]
[1740679548753,11.46,139.2,139.16,0.04597177]
[1740679549259,7.1924,139.17,139.16,7.177e-05]
[1740679549657,28.7524,139.17,139.16,7.177e-05]
[1740679550059,30.07488841,139.17,139.16,7.177e-05]
[1740679551161,30.46498841,139.17,139.16,7.177e-05]
[1740679551555,37.97266864,139.17,139.16,7.177e-05]
[1740679552357,30.46525291,139.17,139.16,7.177e-05]
[1740679552862,7.5825,139.17,139.16,7.177e-05]
[1740679553162,7.1924,139.17,139.16,7.177e-05]
[1740679555462,7.23808276,139.18,139.16,7.177e-05]
[1740679555669,0.04598276,139.18,139.16,7.177e-05]
[1740679555968,7.1924,139.17,139.16,7.177e-05]
[1740679556468,7.1909,139.2,139.17,7.1922]
[1740679556766,11.46,139.23,139.16,1.8353]
[1740679556966,11.46,139.23,139.15,1.981]
[1740679557164,7.193,139.16,139.15,1.981]
[1740679557669,11.46,139.23,139.15,1.981]
[1740679557863,7.1926,139.17,139.15,1.981]
[1740679558266,11.46,139.23,139.15,2.03171286]
[1740679559369,7.193,139.16,139.15,2.03171286]
[1740679559974,7.1922,139.18,139.15,2.03171286]
[1740679560171,11.46,139.23,139.15,2.03171286]
[1740679560973,7.193,139.16,139.15,2.03171286]
[1740679561168,11.46,139.23,139.15,2.03171286]
[1740679561571,7.1913,139.2,139.16,7.1928]
[1740679561771,11.46,139.23,139.16,1.8835]
[1740679561965,11.46,139.23,139.17,0.05503978]
[1740679562774,7.1914,139.19,139.17,0.05503978]
[1740679563176,11.46,139.23,139.17,0.05503978]
[1740679563372,84.02450897,139.25,139.17,0.05503978]
[1740679563776,7.1898,139.23,139.19,7.1912]
[1740679564265,11.46,139.29,139.2,0.05170074]
[1740679564467,1.32153215,139.28,139.2,0.05170074]
[1740679564671,1.32153215,139.28,139.23,0.05489535]
[1740679564876,7.1888,139.24,139.23,0.05489535]
[1740679566873,1.8447,139.33,139.23,0.05489535]
[1740679567081,12.78143609,139.32,139.16,196.8735]
[1740679567274,1.32143609,139.31,139.27,0.05238298]
[1740679567477,7.1856,139.31,139.26,7.1878]
[1740679567677,7.1856,139.31,139.28,0.05381882]
[1740679567876,11.46,139.34,139.28,0.05381882]
[1740679568082,7.1858,139.3,139.28,0.05381882]
[1740679568676,31.77064308,139.37,139.28,0.05381882]
[1740679568877,12.78097761,139.36,139.19,388.54]
[1740679569077,7.1847,139.32,139.31,0.0534706]
[1740679569277,11.46,139.36,139.19,388.54]
[1740679569479,1.32102988,139.35,139.3,0.0454514]
[1740679569680,1.32102988,139.35,139.31,0.04965425]
[1740679569876,1.32102988,139.35,139.19,388.54]
[1740679570583,7.1869,139.28,139.19,388.54]
[1740679570882,7.1876,139.27,139.23,7.189]
[1740679571081,0.04885373,139.25,139.22,0.05236459]
[1740679571281,11.46,139.29,139.19,388.54]
[1740679571579,0.04578856,139.25,139.22,0.04585387]
[1740679571978,7.1871,139.28,139.24,7.1885]
[1740679572178,7.1871,139.28,139.23,3.9384]
[1740679572586,11.46,139.29,139.23,3.9384]
[1740679572879,7.1875,139.27,139.24,7.1886]
[1740679573077,7.1875,139.27,139.25,0.05341073]
[1740679573277,11.46,139.29,139.25,0.05341073]
[1740679573278,7.1878,139.26,139.25,0.05341073]
[1740679574579,7.1869,139.28,139.25,0.05341073]
[1740679574885,11.46,139.29,139.25,0.05341073]
[1740679575181,7.1878,139.26,139.25,0.05341073]
[1740679575678,7.1916,139.19,139.12,3.7418]
[1740679575875,27.3799,139.28,139.12,3.7418]
[1740679576075,1.32165158,139.27,139.16,7.1926]
[1740679576276,1.32165158,139.27,139.12,3.7418]
[1740679576684,7.1928,139.17,139.13,7.1943]
[1740679576878,11.48688369,139.21,139.18,0.04670894]
[1740679577082,0.05318115,139.16,139.12,3.7418]
[1740679577285,3.28236061,139.2,139.12,3.7418]
[1740679577580,1.9602,139.2,139.12,3.7418]
[1740679577982,7.1927,139.17,139.12,10.9367]
[1740679578287,7.23830192,139.17,139.15,0.05149567]
[1740679578887,0.04560192,139.17,139.15,0.05149567]
[1740679579190,0.04560192,139.17,139.12,1.8802]
[1740679579191,0.04560192,139.17,139.06,3.9045]
[1740679579581,1.32226173,139.19,139.05,39.25247257]
[1740679579779,191.0,139.18,139.05,39.25247257]
[1740679579981,192.32226173,139.17,139.05,39.25247257]
[1740679580178,192.32226173,139.16,139.05,39.25247257]
[1740679580484,0.05053747,139.12,139.1,3.631e-05]
[1740679580676,18.6356,139.11,139.1,3.631e-05]
[1740679580881,36.15246173,139.11,139.05,39.25247257]
[1740679581082,1.32226173,139.1,139.05,39.25247257]
[1740679581286,7.1981,139.06,139.05,33.16907257]
[1740679581685,7.1981,139.06,139.05,18.66637257]
[1740679583390,0.05532036,139.07,139.05,18.66637257]
[1740679585291,7.1981,139.06,139.05,18.66637257]
[1740679585487,0.05532036,139.07,139.05,18.66637257]
[1740679585692,7.1981,139.06,139.05,18.66637257]
[1740679585891,0.05532036,139.07,139.05,18.66637257]
[1740679586992,7.1981,139.06,139.05,7.257e-05]
[1740679587201,8.52148956,139.06,139.05,7.257e-05]
[1740679587490,1.32338956,139.06,139.05,7.257e-05]
[1740679588490,1.37870992,139.07,139.05,7.257e-05]
[1740679588683,1.32338956,139.06,139.04,77.93039488]
[1740679588888,7.1986,139.06,139.04,0.05036895]
[1740679589086,1.32338956,139.05,139.04,0.05036895]
[1740679589290,1.32338956,139.05,139.01,29.07388173]
[1740679589484,11.46,139.04,139.01,29.07388173]
[1740679589787,1.32338956,139.03,139.01,29.07388173]
[1740679589996,7.2002,139.02,139.01,29.07388173]
[1740679590188,8.52358956,139.02,139.01,29.00919277]
[1740679590383,30.10358956,139.02,139.01,29.00919277]
[1740679590689,30.10358956,139.02,139.01,17.51729277]
[1740679590898,7.2007,139.01,139.0,1.281e-05]
[1740679591195,8.52408956,139.01,139.0,1.281e-05]
[1740679591390,30.10408956,139.01,139.0,1.281e-05]
[1740679592096,22.90338956,139.01,139.0,1.281e-05]
[1740679592487,21.58,139.01,139.0,1.281e-05]
[1740679592989,21.61,139.01,139.0,1.281e-05]
[1740679593196,12.80428081,139.01,139.0,1.281e-05]
[1740679593800,11.48,139.01,139.0,1.281e-05]
[1740679594387,11.48,139.01,139.0,7.20121281]
[1740679594794,0.05221263,139.03,139.0,1.281e-05]
[1740679594995,0.05221263,139.03,139.02,7.2002]
[1740679595692,0.05221263,139.03,138.93,6.97419727]
[1740679596088,11.48,139.04,138.93,6.97419727]
[1740679596288,11.48,139.04,139.01,7.2004]
[1740679596488,11.48,139.04,138.93,6.97419727]
[1740679596694,1.32379087,139.03,138.9,195.76]
[1740679596895,11.48,139.04,139.01,7.2004]
[1740679597097,11.48,139.04,138.96,0.05222561]
[1740679597297,11.52811067,139.04,138.9,195.76]
[1740679597488,11.52811067,139.04,139.03,7.1997]
[1740679597795,0.04553195,139.05,138.9,195.76]
[1740679597989,11.48,139.04,139.03,7.1997]
[1740679599599,11.48,139.04,139.02,0.05476925]
[1740679599998,0.04986891,139.05,139.02,0.05476925]
[1740679602592,11.5,139.09,139.02,0.05476925]
[1740679602794,84.11639376,139.1,139.02,2.07386925]
[1740679602992,95.61639376,139.1,139.03,1.8568]
[1740679603398,11.5,139.12,139.03,9.0561]
[1740679603596,11.5,139.12,139.03,1.8568]
[1740679603791,0.05471694,139.09,139.06,0.0544595]
[1740679606103,0.05471694,139.09,139.06,0.0031595]
[1740679608005,22.98807706,139.09,139.06,0.0031595]
[1740679608193,1.32336012,139.08,139.06,0.0031595]
[1740679608594,0.05471694,139.09,139.06,0.0031595]
[1740679608801,1.37807045,139.09,139.06,0.0031595]
[1740679609094,1.32335351,139.08,139.06,0.0031595]
[1740679609295,7.25131694,139.09,139.06,0.0031595]
[1740679609901,1.32330268,139.08,139.06,0.0031595]
[1740679610102,7.25131694,139.09,139.06,0.0031595]
[1740679610701,0.05471694,139.09,139.06,0.0031595]
[1740679611407,7.25141694,139.09,139.06,0.0031595]
[1740679612704,0.05471694,139.09,139.06,0.0031595]
[1740679614001,7.25181694,139.09,139.06,0.0031595]
[1740679614909,7.1972,139.08,139.06,0.0031595]
[1740679615508,7.1976,139.07,139.06,0.0031595]
[1740679619017,8.52097963,139.07,139.06,0.0031595]
[1740679619511,7.1976,139.07,139.06,0.0031595]
[1740679620717,7.1971,139.08,139.06,0.0031595]
[1740679620909,0.05471694,139.09,139.06,0.0031595]
[1740679621809,7.1976,139.07,139.06,0.0031595]
[1740679622511,8.52103923,139.07,139.06,0.0031595]
[1740679622816,7.1976,139.07,139.06,0.0031595]
[1740679623218,30.13102519,139.07,139.06,0.0031595]
[1740679623514,59.22276228,139.07,139.06,0.0031595]
[1740679626119,51.71102519,139.07,139.06,0.0031595]
[1740679626317,51.71102519,139.07,138.92,1.8435]
[1740679626318,7.2043,138.95,138.92,1.8435]
[1740679626515,11.5,138.97,138.92,1.8435]
[1740679626912,7.2049,138.93,138.92,1.8435]
[1740679627418,11.5,138.97,138.92,1.8435]
[1740679627624,0.05394839,138.94,138.92,1.8435]
[1740679628015,7.2049,138.93,138.92,1.8435]
[1740679628224,0.05394839,138.94,138.91,1.94615686]
[1740679628615,7.2054,138.92,138.91,5.686e-05]
[1740679631720,0.05394839,138.94,138.91,5.686e-05]
[1740679631925,11.5,138.97,138.91,5.686e-05]
[1740679632225,7.2042,138.95,138.83,3.795]
[1740679632425,11.5,138.97,138.83,196.795]
[1740679632624,2.3659,138.97,138.83,196.795]
[1740679632827,2.3659,138.97,138.94,7.2043]
[1740679633025,0.04545485,138.91,138.83,209.2575]
[1740679633226,9.5688,138.97,138.83,37.8575]
[1740679633426,9.5688,138.97,138.83,16.2575]
[1740679633723,27.63057381,138.98,138.84,195.86]
[1740679633913,17.35397381,138.98,138.84,388.86]
[1740679634114,17.35397381,138.98,138.97,7.2028]
[1740679634115,16.73327381,138.98,138.97,7.2028]
[1740679634318,5.22037381,138.98,138.97,7.2028]
[1740679634623,7.381e-05,138.98,138.97,28.7828]
[1740679634820,7.381e-05,138.98,138.97,21.58]
[1740679635932,7.381e-05,138.98,138.96,0.05351929]
[1740679636426,7.2028,138.97,138.96,0.05351929]
[1740679636927,7.2023,138.98,138.96,0.05351929]
[1740679637221,0.04555011,138.99,138.96,0.05351929]
[1740679639826,0.04555011,138.99,138.96,21.63351929]
[1740679640627,86.13588828,139.12,138.96,21.63351929]
[1740679640826,11.52,139.11,138.95,195.82]
[1740679641132,86.13588828,139.12,138.95,195.82]
[1740679641827,0.04853178,139.05,139.02,7.24714324]
[1740679642029,15.3648,139.13,138.95,388.82]
[1740679642224,7.198,139.07,139.02,7.25188681]
[1740679642529,3.8448,139.13,139.02,7.1997]
[1740679642729,7.24867763,139.06,139.03,0.04560813]
[1740679642929,3.8448,139.13,139.01,7.2005]
[1740679643133,0.05133872,139.06,139.03,0.04569858]
[1740679643326,7.1992,139.04,139.03,0.04569858]
[1740679643529,3.8448,139.13,138.95,388.82]
[1740679643730,0.04873584,139.05,139.02,0.05258323]
[1740679644031,13.3556,139.16,139.02,193.0]
[1740679644231,0.05075308,139.05,139.02,0.05081032]
[1740679644431,7.1984,139.06,139.0,11.52]
[1740679644732,0.05000143,139.05,139.02,0.04989909]
[1740679645031,7.1983,139.06,139.0,11.52]
[1740679645221,0.04728995,139.05,139.02,0.04913552]
[1740679645724,0.0480935,139.05,139.02,21.62899057]
[1740679646731,13.3556,139.16,139.06,7.1977]
[1740679647034,13.3556,139.16,139.0,204.52]
[1740679647233,7.198,139.07,139.0,11.52]
[1740679647935,0.04994758,139.05,139.03,7.1996]
[1740679648235,0.04994758,139.05,139.03,21.58]
[1740679648439,0.04994758,139.05,139.04,7.1992]
[1740679648734,13.3556,139.16,139.03,21.58]
[1740679648929,7.1967,139.09,139.02,193.0]
[1740679649130,13.3556,139.16,139.02,193.0]
[1740679649329,7.1964,139.1,139.02,193.0]
[1740679649637,13.3556,139.16,139.02,193.0]
[1740679649937,13.3556,139.16,139.05,0.04852068]
[1740679650233,0.05382546,139.1,139.02,193.0]
[1740679650435,0.05382546,139.1,139.09,0.05013488]
[1740679650630,0.05382546,139.1,139.02,193.0]
[1740679650942,0.05382546,139.1,139.07,7.1975]
[1740679652237,0.05382546,139.1,139.06,7.198]
[1740679652640,0.05382546,139.1,139.05,0.05370923]
[1740679652935,0.05382546,139.1,139.07,7.1976]
[1740679653527,0.05382546,139.1,139.05,0.05370923]
[1740679653731,0.05382546,139.1,139.09,7.1966]
[1740679654138,0.05382546,139.1,139.09,28.7566]
[1740679654737,200.4985153,139.3,139.09,226.06]
[1740679654936,200.4985153,139.3,139.17,7.1923]
[1740679654937,5.8175,139.27,139.17,7.1923]
[1740679655140,1.3217371,139.26,139.09,204.5]
[1740679655334,5.8175,139.27,139.09,204.5]
[1740679655539,5.8175,139.27,139.2,7.1906]
[1740679656036,5.8175,139.27,139.22,0.04875611]
[1740679656342,0.05069696,139.25,139.22,0.04875611]
[1740679657035,0.05069696,139.25,139.22,7.23865611]
[1740679657236,0.05069696,139.25,139.22,0.04875611]
[1740679659241,0.05069696,139.25,139.09,204.5]
[1740679659440,0.05069696,139.25,139.09,11.5]
[1740679659639,5.8175,139.27,139.09,11.5]
[1740679660043,214.04616257,139.26,139.01,9.67283769]
[1740679660342,0.05249974,139.19,139.16,0.05500807]
[1740679660544,11.54,139.18,139.16,0.05500807]
[1740679660741,20.6711,139.18,139.01,202.67283769]
[1740679660947,13.5320688,139.18,139.16,0.04767086]
[1740679661241,13.4788,139.18,139.04,193.70528927]
[1740679661433,7.1924,139.17,139.09,7.1963]
[1740679661634,0.04751557,139.15,139.12,0.05046112]
[1740679661942,20.6711,139.18,139.1,7.1957]
[1740679662143,0.05516629,139.15,139.12,0.05164999]
[1740679662738,0.05516629,139.15,139.12,7.24664999]
[1740679663643,0.05516629,139.15,139.12,0.05164999]
[1740679666844,0.05516629,139.15,139.12,7.24644999]
[1740679667043,0.05516629,139.15,139.12,0.05164999]
[1740679670346,0.05516629,139.15,139.12,7.24644999]
[1740679670743,0.05516629,139.15,139.12,0.05164999]
[1740679671041,7.24886629,139.15,139.12,0.05164999]
[1740679671246,0.05516629,139.15,139.12,0.05164999]
[1740679673048,0.05516629,139.15,139.13,7.1942]
[1740679673650,7.24866629,139.15,139.13,7.1942]
[1740679674051,0.05516629,139.15,139.13,7.1942]
[1740679674646,7.24886629,139.15,139.12,7.24654999]
[1740679675150,7.24886629,139.15,139.12,7.24634999]
[1740679676452,0.05516629,139.15,139.13,7.1944]
[1740679676845,0.05516629,139.15,139.12,0.05164999]
[1740679677047,7.24886629,139.15,139.12,7.24624999]
[1740679677251,0.05516629,139.15,139.12,0.05164999]
[1740679678744,7.1945,139.13,139.12,0.05164999]
[1740679680458,0.05516629,139.15,139.04,193.0]
[1740679680663,1.32275201,139.15,139.01,38.88266812]
[1740679680858,7.1982,139.06,139.03,7.1997]
[1740679681065,11.48,139.1,139.01,38.88266812]
[1740679681264,3.9866,139.09,139.01,16.87323769]
[1740679681562,0.05251272,139.07,139.04,0.04709222]
[1740679682261,7.25011272,139.07,139.04,0.04709222]
[1740679682565,0.05251272,139.07,138.99,38.88266812]
[1740679683360,7.1989,139.05,138.98,7.2021]
[1740679683566,3.9866,139.09,139.02,0.04721636]
[1740679683868,0.04637105,139.03,138.94,195.56]
[1740679684067,3.9866,139.09,138.94,195.56]
[1740679684268,3.9866,139.09,139.04,7.175e-05]
[1740679684462,1.32346084,139.08,138.97,7.2025]
[1740679684661,1.32346084,139.08,138.92,9.67283769]
[1740679684869,7.1981,139.06,138.99,7.2014]
[1740679685063,7.1981,139.06,138.92,9.67283769]
[1740679685064,3.9866,139.09,138.92,9.67283769]
[1740679685464,0.04845991,139.02,138.99,0.05480077]
[1740679685768,1.8452,139.08,138.92,9.67283769]
[1740679685971,0.04795545,139.02,138.99,0.04946589]
[1740679686361,0.05477457,139.02,138.99,0.0480207]
[1740679687364,1.96657457,139.02,138.99,0.0480207]
[1740679689561,1.96657457,139.02,139.0,7.2012]
[1740679689760,0.05477457,139.02,138.99,0.0480207]
[1740679690170,0.05477457,139.02,139.01,7.2007]
[1740679690970,1.9887,139.07,139.01,21.58]
[1740679691264,1.9887,139.07,139.04,7.1988]
[1740679691471,11.48,139.12,138.96,11.48]
[1740679691673,11.48,139.12,139.07,7.1973]
[1740679691966,11.48,139.12,138.97,0.1014]
[1740679691967,11.48,139.12,138.98,14.4045]
[1740679692168,0.05405939,139.11,139.08,7.24525511]
[1740679692872,0.05405939,139.11,139.09,7.1965]
[1740679693872,7.24965939,139.11,139.08,7.24525511]
[1740679694066,0.05405939,139.11,139.08,7.24525511]
[1740679694260,0.05405939,139.11,139.08,0.04835511]
[1740679695270,0.05405939,139.11,139.09,7.1963]
[1740679695471,0.05405939,139.11,139.08,0.04835511]
[1740679696077,7.24985939,139.11,139.08,0.04835511]
[1740679696468,0.05405939,139.11,139.08,0.04835511]
[1740679696668,0.05405939,139.11,139.08,7.24505511]
[1740679697469,0.05405939,139.11,139.08,0.04835511]
[1740679698975,0.05405939,139.11,139.03,7.1997]
[1740679699162,5.8434,139.13,139.03,7.1997]
[1740679699674,1.3229693,139.12,139.02,7.2]
[1740679700077,1.3229693,139.12,138.97,195.7814]
[1740679700078,0.05106045,139.08,139.06,0.05400555]
[1740679700368,11.46,139.07,139.0,7.201]
[1740679700565,2.0176,139.06,139.0,7.201]
[1740679700764,7.199,139.05,139.0,7.201]
[1740679700967,2.0176,139.06,139.0,7.201]
[1740679701173,2.0176,139.06,138.93,0.1039]
[1740679701370,0.04827755,139.04,139.02,0.04804641]
[1740679701570,2.0176,139.06,138.97,7.2023]
[1740679701975,7.2001,139.03,138.93,0.1039]
[1740679702273,7.2001,139.03,138.98,7.2019]
[1740679702575,7.2001,139.03,138.93,0.1039]
[1740679702773,0.0509457,139.02,138.99,0.04789186]
[1740679703473,0.0509457,139.02,138.99,7.24959186]
[1740679703875,0.0509457,139.02,138.99,0.04789186]
[1740679704075,0.0509457,139.02,139.01,7.2007]
[1740679704471,0.0509457,139.02,138.99,0.04789186]
[1740679705276,0.0509457,139.02,138.99,7.24939186]
[1740679705572,0.0509457,139.02,138.99,0.04789186]
[1740679705975,0.0509457,139.02,139.0,7.2009]
[1740679706969,7.2012,139.0,138.99,0.04789186]
[1740679707174,0.0509457,139.02,138.91,0.1043]
[1740679707572,1.32370598,139.05,138.9,0.1013]
[1740679707977,1.32370598,139.05,138.89,195.66]
[1740679708372,25.5576,139.06,138.89,195.66]
[1740679708584,7.2028,138.97,138.96,0.04696177]
[1740679708872,11.46,138.99,138.89,195.66]
[1740679709071,3.96862124,138.98,138.95,0.04613105]
[1740679709269,7.2036,138.96,138.95,0.04613105]
[1740679709471,3.96862124,138.98,138.86,0.3529]
[1740679709669,7.205,138.93,138.89,7.2069]
[1740679709875,3.9165,138.98,138.86,0.3529]
[1740679710269,7.2037,138.96,138.91,7.2056]
[1740679710468,3.9165,138.98,138.91,7.2056]
[1740679710672,0.04751475,138.95,138.92,0.04618752]
[1740679711378,7.2046,138.94,138.92,0.04618752]
[1740679711572,0.04751475,138.95,138.92,0.04618752]
[1740679711884,7.25171475,138.95,138.92,0.04618752]
[1740679712179,0.04751475,138.95,138.92,0.04618752]
[1740679712379,0.04751475,138.95,138.92,7.25138752]
[1740679712975,0.04751475,138.95,138.92,0.04618752]
[1740679713482,7.25131475,138.95,138.92,0.04618752]
[1740679713784,0.04751475,138.95,138.92,0.04618752]
[1740679715185,7.2049,138.93,138.92,0.04618752]
[1740679716986,7.2057,138.92,138.82,0.2482]
[1740679717187,1.849,138.97,138.82,0.402]
[1740679717488,7.2046,138.94,138.9,7.2062]
[1740679717982,7.2046,138.94,138.91,0.05063382]
[1740679718285,0.05177725,138.93,138.92,7.2054]
[1740679718586,0.05177725,138.93,138.91,0.05063382]
[1740679718587,1.849,138.97,138.91,0.05063382]
[1740679718786,0.04855267,138.94,138.91,0.05063382]
[1740679718983,0.04855267,138.94,138.92,7.205]
[1740679719486,7.25295267,138.94,138.92,7.205]
[1740679719688,0.04855267,138.94,138.92,7.205]
[1740679719983,0.04855267,138.94,138.93,7.2049]
[1740679720285,0.04855267,138.94,138.91,0.05063382]
[1740679721287,0.04855267,138.94,138.92,7.2052]
[1740679721588,0.04855267,138.94,138.91,0.05063382]
[1740679722288,0.04855267,138.94,138.93,7.2049]
[1740679723091,0.04855267,138.94,138.91,0.05063382]
[1740679723587,0.04855267,138.94,138.92,7.2049]
[1740679724392,0.04855267,138.94,138.91,0.05063382]
[1740679725193,0.04855267,138.94,138.93,7.2049]
[1740679725791,0.04855267,138.94,138.92,7.2051]
[1740679726390,0.04855267,138.94,138.93,7.2049]
[1740679726591,7.25315267,138.94,138.91,0.05063382]
[1740679726998,7.25315267,138.94,138.91,7.25613382]
[1740679727391,0.04855267,138.94,138.91,0.05063382]
[1740679727991,0.04855267,138.94,138.93,7.2049]
[1740679728193,3.8553,139.02,138.91,0.05063382]
[1740679728498,7.2018,138.99,138.96,7.203]
[1740679728692,15.3353,139.02,138.9,0.3]
[1740679729198,15.3353,139.02,138.96,7.203]
[1740679729395,0.05155454,138.97,138.96,7.203]
[1740679729595,15.3353,139.02,138.96,7.203]
[1740679729802,0.04875038,138.98,138.96,7.203]
[1740679730098,0.04875038,138.98,138.95,0.05538817]
[1740679730099,0.04875038,138.98,138.95,7.25898817]
[1740679730496,7.2031,138.97,138.95,7.25898817]
[1740679730700,0.04875038,138.98,138.95,7.25898817]